[Event "Blixt-SM 2021"]
[Site "Elite Hotel Marina Plaza, Kungstorget 6, Helsingborg, Sweden"]
[Date "2021.11.14"]
[Round "10.3"]
[White "Storme, Isak"]
[Black "Tornberg, Carlos"]
[Result "1/2-1/2"]
[TimeControl "3 minutes + 2 seconds per move."]
[WhiteTitle "FM"]
[WhiteFideId "1728113"]
[BlackFideId "1733478"]
[WhiteElo "2037"]
[BlackElo "2053"]

1. e4 {[%clk 00:03:02]} {[%emt 00:00:01]} e5 {[%clk 00:03:04]} {[%emt
00:00:01]} 2. Nf3 {[%clk 00:03:00]} {[%emt 00:00:04]} Nc6 {[%clk 00:03:05]}
{[%emt 00:00:01]} 3. Bb5 {[%emt 00:00:04]} a6 {[%emt 00:00:01]} 4. Ba4 {[%clk
00:02:59]} d6 {[%clk 00:03:08]} 5. c3 {[%clk 00:02:50]} {[%emt 00:00:11]} f5
{[%clk 00:03:09]} {[%emt 00:00:01]} 6. exf5 {[%clk 00:02:41]} {[%emt 00:00:10]}
Bxf5 {[%clk 00:03:10]} {[%emt 00:00:02]} 7. O-O {[%clk 00:02:33]} {[%emt
00:00:09]} Bd3 {[%clk 00:03:11]} 8. Re1 {[%clk 00:02:33]} {[%emt 00:00:04]} Be7
{[%clk 00:03:12]} {[%emt 00:00:01]} 9. Bc2 {[%clk 00:02:32]} {[%emt 00:00:03]}
Bxc2 {[%clk 00:03:08]} {[%emt 00:00:06]} 10. Qxc2 {[%clk 00:02:32]} {[%emt
00:00:02]} Nf6 {[%clk 00:03:08]} {[%emt 00:00:01]} 11. d4 {[%clk 00:02:31]}
{[%emt 00:00:03]} e4 {[%clk 00:03:09]} {[%emt 00:00:02]} 12. Ng5 {[%clk
00:02:27]} {[%emt 00:00:06]} d5 {[%clk 00:03:05]} {[%emt 00:00:06]} 13. f3
{[%clk 00:02:11]} {[%emt 00:00:18]} h6 {[%clk 00:02:31]} {[%emt 00:00:37]} 14.
Ne6 {[%clk 00:01:59]} {[%emt 00:00:13]} Qd7 {[%clk 00:02:27]} {[%emt 00:00:06]}
15. Nf4 {[%clk 00:01:20]} {[%emt 00:00:39]} O-O {[%clk 00:02:23]} {[%emt
00:00:08]} 16. Nd2 {[%clk 00:01:13]} {[%emt 00:00:09]} Bd6 {[%clk 00:02:23]}
{[%emt 00:00:03]} 17. Ng6 {[%clk 00:00:53]} {[%emt 00:00:21]} Rf7 {[%clk
00:02:07]} {[%emt 00:00:18]} 18. fxe4 {[%clk 00:00:52]} {[%emt 00:00:03]} dxe4
{[%clk 00:01:36]} {[%emt 00:00:33]} 19. Nxe4 {[%clk 00:00:51]} {[%emt
00:00:02]} Re8 {[%clk 00:01:33]} {[%emt 00:00:05]} 20. Nxf6+ {[%clk 00:00:33]}
{[%emt 00:00:20]} Rxf6 {[%clk 00:01:32]} {[%emt 00:00:03]} 21. Bd2 {[%clk
00:00:21]} {[%emt 00:00:13]} Rxe1+ {[%clk 00:01:01]} {[%emt 00:00:34]} 22. Rxe1
{[%clk 00:00:21]} Qg4 {[%clk 00:01:02]} {[%emt 00:00:01]} 23. Ne5 {[%clk
00:00:12]} {[%emt 00:00:11]} Nxd4 {[%clk 00:00:49]} {[%emt 00:00:16]} 24. Qe4
{[%clk 00:00:07]} {[%emt 00:00:07]} Qxe4 {[%clk 00:00:32]} {[%emt 00:00:19]} 25.
Rxe4 {[%clk 00:00:07]} {[%emt 00:00:01]} Nf5 {[%clk 00:00:21]} {[%emt
00:00:13]} 26. Nf3 {[%clk 00:00:06]} {[%emt 00:00:02]} Bc5+ {[%clk 00:00:22]}
{[%emt 00:00:02]} 27. Kf1 {[%clk 00:00:05]} {[%emt 00:00:03]} Kf7 {[%clk
00:00:20]} {[%emt 00:00:03]} 28. Ke2 {[%clk 00:00:06]} {[%emt 00:00:02]} Nd6
{[%clk 00:00:21]} {[%emt 00:00:01]} 29. Rf4 {[%clk 00:00:06]} {[%emt 00:00:02]}
g5 {[%clk 00:00:17]} {[%emt 00:00:06]} 30. Rxf6+ {[%clk 00:00:06]} {[%emt
00:00:02]} Kxf6 {[%clk 00:00:18]} 31. b3 {[%clk 00:00:06]} {[%emt 00:00:02]}
Ne4 {[%clk 00:00:17]} {[%emt 00:00:03]} 32. Be1 {[%clk 00:00:06]} {[%emt
00:00:02]} Bd6 {[%clk 00:00:15]} {[%emt 00:00:04]} 33. h3 {[%clk 00:00:05]}
{[%emt 00:00:03]} Bg3 {[%clk 00:00:13]} {[%emt 00:00:04]} 34. Bxg3 {[%clk
00:00:04]} {[%emt 00:00:04]} Nxg3+ {[%clk 00:00:14]} {[%emt 00:00:01]} 35. Kd3
{[%clk 00:00:05]} Nh5 {[%clk 00:00:13]} {[%emt 00:00:03]} 36. Ke4 {[%clk
00:00:04]} {[%emt 00:00:02]} Nf4 {[%clk 00:00:14]} {[%emt 00:00:02]} 37. Ne1
{[%clk 00:00:04]} {[%emt 00:00:02]} Ke6 {[%clk 00:00:07]} {[%emt 00:00:08]} 38.
h4 {[%clk 00:00:05]} Ne2 {[%clk 00:00:06]} {[%emt 00:00:03]} 39. hxg5 {[%clk
00:00:06]} {[%emt 00:00:02]} hxg5 {[%clk 00:00:06]} {[%emt 00:00:03]} 40. Kd3
{[%clk 00:00:06]} {[%emt 00:00:01]} Nf4+ {[%clk 00:00:07]} 41. Ke4 {[%clk
00:00:07]} {[%emt 00:00:02]} Ne2 {[%clk 00:00:07]} {[%emt 00:00:02]} 42. Nf3
{[%clk 00:00:07]} {[%emt 00:00:01]} Nxc3+ {[%clk 00:00:07]} {[%emt 00:00:03]}
43. Kd3 {[%clk 00:00:08]} Nxa2 {[%clk 00:00:07]} {[%emt 00:00:02]} 44. Nxg5+
{[%emt 00:00:01]} Kf5 45. Nf7 {[%clk 00:00:08]} {[%emt 00:00:02]} b5 {[%clk
00:00:09]} {[%emt 00:00:02]} 46. Kd4 {[%clk 00:00:08]} {[%emt 00:00:03]} Nc1
{[%clk 00:00:10]} 47. Kc3 {[%clk 00:00:08]} {[%emt 00:00:01]} a5 {[%clk
00:00:10]} {[%emt 00:00:03]} 48. Nd8 {[%clk 00:00:08]} {[%emt 00:00:01]} c5
{[%clk 00:00:10]} {[%emt 00:00:03]} 49. Nb7 {[%clk 00:00:08]} {[%emt 00:00:01]}
Ne2+ {[%clk 00:00:08]} {[%emt 00:00:03]} 50. Kb2 {[%clk 00:00:08]} {[%emt
00:00:01]} c4 {[%clk 00:00:06]} {[%emt 00:00:05]} 51. bxc4 {[%clk 00:00:09]}
{[%emt 00:00:01]} bxc4 {[%clk 00:00:07]} {[%emt 00:00:02]} 52. Nxa5 {[%clk
00:00:09]} {[%emt 00:00:01]} c3+ {[%clk 00:00:08]} 53. Kc2 {[%clk 00:00:10]}
{[%emt 00:00:02]} Kg4 {[%clk 00:00:09]} 54. Nc4 {[%clk 00:00:10]} {[%emt
00:00:02]} Kg3 {[%clk 00:00:07]} {[%emt 00:00:04]} 55. Ne3 {[%clk 00:00:10]}
{[%emt 00:00:02]} Kf2 {[%clk 00:00:08]} 56. Nd5 {[%clk 00:00:09]} {[%emt
00:00:03]} Kxg2 {[%clk 00:00:08]} {[%emt 00:00:01]} 57. Nf4 {[%clk 00:00:10]}
Kh1 {[%clk 00:00:06]} {[%emt 00:00:05]} 58. Nxe2 {[%clk 00:00:10]} {[%emt
00:00:02]} Kg2 {[%clk 00:00:06]} 59. Kxc3 {[%clk 00:00:11]} {[%emt 00:00:02]}
1/2-1/2

[Event "Blixt-SM 2021"]
[Site "Elite Hotel Marina Plaza, Kungstorget 6, Helsingborg, Sweden"]
[Date "2021.11.14"]
[Round "12.1"]
[White "Smith, Axel"]
[Black "Tornberg, Carlos"]
[Result "1-0"]
[TimeControl "3 minutes + 2 seconds per move."]
[WhiteTitle "GM"]
[WhiteFideId "1707930"]
[BlackFideId "1733478"]
[WhiteElo "2473"]
[BlackElo "2053"]

1. e4 {[%clk 00:03:04]} {[%emt 00:02:34]} e5 {[%clk 00:03:04]} 2. Nf3 {[%clk
00:03:04]} {[%emt 00:00:01]} Nc6 {[%clk 00:03:05]} 3. Bc4 {[%clk 00:03:05]} Nf6
{[%clk 00:03:07]} 4. Ng5 {[%clk 00:03:06]} {[%emt 00:00:02]} Bc5 {[%clk
00:03:08]} 5. Bxf7+ {[%clk 00:03:01]} {[%emt 00:00:07]} Ke7 {[%clk 00:03:09]} 6.
Bd5 {[%clk 00:03:00]} {[%emt 00:00:05]} Rf8 {[%clk 00:03:07]} {[%emt 00:00:04]}
7. O-O {[%clk 00:02:54]} {[%emt 00:00:07]} d6 {[%clk 00:03:05]} {[%emt
00:00:04]} 8. h3 {[%clk 00:02:40]} {[%emt 00:00:17]} Qe8 {[%clk 00:03:00]}
{[%emt 00:00:07]} 9. d3 {[%clk 00:02:26]} {[%emt 00:00:16]} Qg6 {[%clk
00:02:53]} {[%emt 00:00:09]} 10. Kh1 {[%clk 00:02:21]} {[%emt 00:00:07]} Nh5
{[%clk 00:02:29]} {[%emt 00:00:26]} 11. Nf3 {[%clk 00:02:13]} {[%emt 00:00:10]}
Nf4 {[%clk 00:01:34]} {[%emt 00:00:57]} 12. Bxf4 {[%clk 00:02:00]} {[%emt
00:00:16]} Rxf4 {[%clk 00:01:30]} {[%emt 00:00:05]} 13. c3 {[%clk 00:01:51]}
{[%emt 00:00:11]} Bd7 {[%clk 00:01:26]} {[%emt 00:00:07]} 14. d4 {[%clk
00:01:48]} {[%emt 00:00:05]} exd4 {[%clk 00:01:21]} {[%emt 00:00:07]} 15. cxd4
{[%clk 00:01:49]} Rxf3 {[%clk 00:00:53]} {[%emt 00:00:30]} 16. Bxc6 {[%clk
00:01:21]} {[%emt 00:00:29]} Rxh3+ {[%clk 00:00:28]} {[%emt 00:00:26]} 17. gxh3
{[%clk 00:01:22]} {[%emt 00:00:02]} Bxh3 {[%clk 00:00:29]} {[%emt 00:00:02]} 18.
Rg1 {[%clk 00:01:12]} {[%emt 00:00:12]} Qxe4+ {[%clk 00:00:29]} {[%emt
00:00:01]} 19. Bxe4 {[%clk 00:01:13]} {[%emt 00:00:01]} 1-0

[Event "Blixt-SM 2021"]
[Site "Elite Hotel Marina Plaza, Kungstorget 6, Helsingborg, Sweden"]
[Date "2021.11.14"]
[Round "13.8"]
[White "Abedinov, Adnan"]
[Black "Troedsson, Anton"]
[Result "1-0"]
[TimeControl "3 minutes + 2 seconds per move."]
[WhiteFideId "1703544"]
[BlackFideId "1746006"]
[WhiteElo "2170"]
[BlackElo "2104"]

1. d4 {[%clk 00:03:03]} d5 {[%clk 00:03:04]} 2. Bf4 {[%clk 00:03:04]} Nf6
{[%clk 00:03:04]} {[%emt 00:00:02]} 3. e3 {[%clk 00:03:05]} c5 {[%clk
00:03:05]} 4. Nf3 {[%clk 00:03:05]} {[%emt 00:00:02]} Nc6 {[%clk 00:03:06]}
{[%emt 00:00:02]} 5. c3 {[%clk 00:03:05]} {[%emt 00:00:02]} Qb6 {[%clk
00:03:06]} {[%emt 00:00:01]} 6. Qb3 {[%clk 00:03:04]} {[%emt 00:00:03]} c4
{[%clk 00:03:07]} {[%emt 00:00:01]} 7. Qc2 {[%clk 00:03:02]} {[%emt 00:00:04]}
Bf5 {[%clk 00:03:08]} {[%emt 00:00:01]} 8. Qc1 {[%clk 00:03:01]} {[%emt
00:00:02]} e6 {[%clk 00:03:08]} {[%emt 00:00:02]} 9. Nbd2 {[%clk 00:03:02]} h6
{[%clk 00:03:07]} {[%emt 00:00:03]} 10. b3 {[%clk 00:02:47]} {[%emt 00:00:17]}
cxb3 {[%clk 00:03:04]} {[%emt 00:00:05]} 11. axb3 {[%clk 00:02:48]} {[%emt
00:00:01]} Be7 {[%clk 00:03:04]} {[%emt 00:00:02]} 12. Be2 {[%clk 00:02:42]}
{[%emt 00:00:08]} O-O {[%clk 00:03:04]} {[%emt 00:00:02]} 13. O-O {[%clk
00:02:43]} Rfc8 {[%clk 00:02:58]} {[%emt 00:00:10]} 14. Qb2 {[%clk 00:02:42]}
{[%emt 00:00:03]} Qd8 {[%clk 00:02:10]} {[%emt 00:00:50]} 15. h3 {[%clk
00:02:40]} {[%emt 00:00:03]} Bd6 {[%clk 00:02:10]} {[%emt 00:00:02]} 16. Ne5
{[%clk 00:02:29]} {[%emt 00:00:13]} Bxe5 {[%clk 00:02:04]} {[%emt 00:00:08]} 17.
dxe5 {[%clk 00:02:28]} {[%emt 00:00:02]} Nd7 {[%clk 00:02:03]} {[%emt
00:00:04]} 18. Nf3 {[%clk 00:02:27]} {[%emt 00:00:03]} Be4 {[%clk 00:01:55]}
{[%emt 00:00:10]} 19. c4 {[%clk 00:02:12]} {[%emt 00:00:17]} Qb6 {[%clk
00:01:50]} {[%emt 00:00:07]} 20. Rfd1 {[%clk 00:01:47]} {[%emt 00:00:26]} Nc5
{[%clk 00:01:45]} {[%emt 00:00:08]} 21. Ra3 {[%clk 00:01:35]} {[%emt 00:00:13]}
dxc4 {[%clk 00:01:08]} {[%emt 00:00:40]} 22. Bxc4 {[%clk 00:00:32]} {[%emt
00:01:05]} Rd8 {[%clk 00:01:07]} {[%emt 00:00:02]} 23. Rd6 {[%clk 00:00:25]}
{[%emt 00:00:09]} Qb4 {[%clk 00:00:50]} {[%emt 00:00:19]} 24. Nd4 {[%clk
00:00:16]} {[%emt 00:00:12]} Na5 {[%clk 00:00:15]} {[%emt 00:00:37]} 25. Rxa5
{[%clk 00:00:06]} {[%emt 00:00:11]} Qxa5 {[%emt 00:00:07]} 26. b4 Qa4 {[%clk
00:00:09]} {[%emt 00:00:03]} 27. bxc5 {[%clk 00:00:06]} {[%emt 00:00:04]} Qxc4
{[%clk 00:00:09]} {[%emt 00:00:02]} 28. f3 {[%clk 00:00:06]} {[%emt 00:00:03]}
Bg6 {[%clk 00:00:03]} {[%emt 00:00:08]} 29. Kh2 {[%clk 00:00:06]} {[%emt
00:00:02]} Qxc5 {[%clk 00:00:04]} {[%emt 00:00:01]} 30. Qxb7 {[%clk 00:00:06]}
{[%emt 00:00:02]} Rab8 {[%clk 00:00:05]} 31. Qa6 {[%clk 00:00:06]} {[%emt
00:00:02]} Rb6 {[%clk 00:00:05]} {[%emt 00:00:02]} 32. Rxd8+ {[%clk 00:00:06]}
{[%emt 00:00:02]} Kh7 33. Qa1 Qc4 {[%clk 00:00:05]} {[%emt 00:00:02]} 34. Ne2
{[%clk 00:00:08]} {[%emt 00:00:02]} Qxe2 {[%emt 00:00:02]} 35. Qd1 Rb2 {[%clk
00:00:06]} {[%emt 00:00:02]} 36. Qxe2 {[%clk 00:00:10]} Rxe2 {[%clk 00:00:07]}
{[%emt 00:00:01]} 37. Rd7 {[%clk 00:00:11]} Ra2 {[%clk 00:00:08]} 38. Kg3
{[%clk 00:00:13]} a5 {[%clk 00:00:08]} {[%emt 00:00:02]} 39. e4 {[%clk
00:00:14]} h5 {[%clk 00:00:09]} {[%emt 00:00:01]} 40. Be3 {[%clk 00:00:15]}
{[%emt 00:00:02]} h4+ {[%clk 00:00:10]} 41. Kxh4 {[%clk 00:00:15]} {[%emt
00:00:02]} Rxg2 {[%clk 00:00:11]} {[%emt 00:00:02]} 42. Ra7 {[%clk 00:00:15]}
{[%emt 00:00:02]} Ra2 {[%clk 00:00:11]} {[%emt 00:00:02]} 43. Kg3 {[%clk
00:00:15]} {[%emt 00:00:02]} Ra3 {[%clk 00:00:11]} {[%emt 00:00:02]} 44. Kf4
{[%clk 00:00:14]} {[%emt 00:00:02]} a4 {[%clk 00:00:12]} {[%emt 00:00:01]} 45.
h4 {[%clk 00:00:15]} Ra2 {[%clk 00:00:13]} {[%emt 00:00:01]} 46. Bc5 {[%clk
00:00:17]} Kh6 {[%clk 00:00:13]} {[%emt 00:00:02]} 47. Bf8 {[%clk 00:00:18]}
Kh7 {[%clk 00:00:14]} 48. Be7 {[%clk 00:00:19]} {[%emt 00:00:02]} Bh5 {[%clk
00:00:15]} 49. Bf8 {[%clk 00:00:17]} {[%emt 00:00:04]} Ra3 {[%clk 00:00:16]}
{[%emt 00:00:02]} 50. Kg5 {[%clk 00:00:18]} Bxf3 {[%clk 00:00:16]} {[%emt
00:00:02]} 51. Rxf7 {[%clk 00:00:19]} Bxe4 {[%clk 00:00:15]} {[%emt 00:00:03]}
52. Rxg7+ {[%clk 00:00:17]} {[%emt 00:00:04]} Kh8 {[%clk 00:00:16]} 53. Ra7
{[%clk 00:00:18]} {[%emt 00:00:02]} Rg3+ {[%clk 00:00:15]} {[%emt 00:00:03]} 54.
Kh6 {[%clk 00:00:18]} {[%emt 00:00:02]} Rg6+ {[%clk 00:00:15]} 55. Kh5 {[%clk
00:00:20]} Rg8 {[%clk 00:00:15]} {[%emt 00:00:02]} 56. Be7 {[%clk 00:00:19]}
{[%emt 00:00:03]} Re8 {[%clk 00:00:05]} {[%emt 00:00:13]} 57. Bf6+ {[%clk
00:00:20]} Kg8 {[%clk 00:00:06]} 58. Rxa4 {[%clk 00:00:22]} Bf5 {[%clk
00:00:06]} {[%emt 00:00:03]} 59. Ra7 {[%clk 00:00:23]} Kf8 {[%clk 00:00:07]}
{[%emt 00:00:01]} 60. Kg5 {[%clk 00:00:24]} Kg8 {[%clk 00:00:08]} 61. h5 {[%clk
00:00:25]} {[%emt 00:00:01]} Rc8 {[%clk 00:00:08]} {[%emt 00:00:01]} 62. h6
{[%clk 00:00:26]} {[%emt 00:00:01]} Rc2 {[%clk 00:00:08]} {[%emt 00:00:03]} 63.
Ra8+ {[%clk 00:00:27]} Kf7 {[%clk 00:00:09]} {[%emt 00:00:01]} 64. Ra7+ {[%clk
00:00:23]} {[%emt 00:00:07]} Kf8 {[%clk 00:00:10]} 65. Bg7+ {[%clk 00:00:23]}
{[%emt 00:00:02]} Kg8 {[%clk 00:00:11]} 66. Kf6 {[%clk 00:00:24]} {[%emt
00:00:01]} Rh2 {[%clk 00:00:11]} {[%emt 00:00:02]} 67. Ra8+ {[%clk 00:00:25]}
Kh7 {[%clk 00:00:11]} {[%emt 00:00:02]} 68. Rh8+ 1-0

[Event "Blixt-SM 2021"]
[Site "Elite Hotel Marina Plaza, Kungstorget 6, Helsingborg, Sweden"]
[Date "2021.11.14"]
[Round "1.4"]
[White "Kucuksari, Kaan"]
[Black "Kayyali, Isam"]
[Result "1/2-1/2"]
[TimeControl "3 minutes + 2 seconds per move."]
[WhiteTitle "FM"]
[WhiteFideId "6380166"]
[BlackFideId "1761706"]
[WhiteElo "2301"]
[BlackElo "1777"]

1. d4 {[%clk 00:03:03]} {[%emt 00:07:10]} Nf6 {[%clk 00:03:02]} {[%emt
00:00:03]} 2. c4 {[%clk 00:03:04]} {[%emt 00:00:02]} e6 {[%clk 00:03:02]}
{[%emt 00:00:01]} 3. g3 {[%clk 00:03:04]} {[%emt 00:00:01]} d5 {[%clk
00:03:03]} 4. Nf3 {[%clk 00:03:05]} {[%emt 00:00:02]} c6 {[%clk 00:03:04]} 5.
Qc2 {[%clk 00:03:05]} {[%emt 00:00:02]} Be7 {[%clk 00:03:05]} {[%emt 00:00:02]}
6. Bg2 {[%clk 00:03:06]} {[%emt 00:00:02]} O-O {[%clk 00:03:01]} {[%emt
00:00:05]} 7. O-O {[%clk 00:03:06]} {[%emt 00:00:02]} Nbd7 {[%clk 00:03:01]}
{[%emt 00:00:02]} 8. Nbd2 {[%clk 00:03:06]} {[%emt 00:00:02]} b6 {[%clk
00:03:02]} {[%emt 00:00:01]} 9. e4 {[%clk 00:03:06]} {[%emt 00:00:02]} dxe4
{[%clk 00:03:01]} {[%emt 00:00:03]} 10. Nxe4 {[%clk 00:03:06]} {[%emt
00:00:02]} Bb7 {[%clk 00:03:00]} {[%emt 00:00:03]} 11. Rd1 {[%clk 00:02:45]}
{[%emt 00:00:23]} Rc8 {[%clk 00:02:59]} {[%emt 00:00:03]} 12. Bf4 {[%clk
00:02:43]} {[%emt 00:00:04]} Nxe4 {[%clk 00:02:18]} {[%emt 00:00:44]} 13. Qxe4
{[%clk 00:02:43]} {[%emt 00:00:02]} Nf6 {[%clk 00:02:16]} {[%emt 00:00:04]} 14.
Qc2 {[%clk 00:02:38]} {[%emt 00:00:06]} b5 {[%clk 00:02:02]} {[%emt 00:00:17]}
15. Ne5 {[%clk 00:02:24]} {[%emt 00:00:16]} bxc4 {[%clk 00:01:58]} {[%emt
00:00:06]} 16. Qxc4 {[%clk 00:02:23]} {[%emt 00:00:02]} Nd5 {[%clk 00:01:56]}
{[%emt 00:00:04]} 17. Bd2 {[%clk 00:02:17]} {[%emt 00:00:06]} Bf6 {[%clk
00:01:48]} {[%emt 00:00:13]} 18. Bb4 {[%clk 00:01:54]} {[%emt 00:00:26]} Re8
{[%clk 00:01:38]} {[%emt 00:00:12]} 19. Bc5 {[%clk 00:01:54]} {[%emt 00:00:02]}
Bxe5 {[%clk 00:01:29]} {[%emt 00:00:11]} 20. dxe5 {[%clk 00:01:54]} {[%emt
00:00:02]} Qa5 {[%clk 00:01:27]} {[%emt 00:00:04]} 21. b4 {[%clk 00:01:52]}
{[%emt 00:00:04]} Qb5 {[%clk 00:01:19]} {[%emt 00:00:10]} 22. Qc2 {[%clk
00:00:56]} {[%emt 00:00:57]} Nxb4 {[%clk 00:01:02]} {[%emt 00:00:20]} 23. Bxb4
{[%clk 00:00:55]} {[%emt 00:00:03]} Qxb4 {[%clk 00:01:03]} {[%emt 00:00:02]} 24.
Rd6 {[%clk 00:00:46]} {[%emt 00:00:10]} Qb6 {[%clk 00:00:42]} {[%emt 00:00:23]}
25. Rb1 {[%clk 00:00:38]} {[%emt 00:00:10]} Qc7 {[%clk 00:00:44]} 26. Qc5
{[%clk 00:00:31]} {[%emt 00:00:09]} Ba8 {[%clk 00:00:44]} {[%emt 00:00:02]} 27.
Rbd1 {[%clk 00:00:28]} {[%emt 00:00:04]} Qb6 {[%clk 00:00:35]} {[%emt
00:00:12]} 28. Qc3 {[%clk 00:00:20]} {[%emt 00:00:10]} h6 {[%clk 00:00:35]}
{[%emt 00:00:02]} 29. Rd7 {[%clk 00:00:19]} {[%emt 00:00:03]} Red8 {[%clk
00:00:33]} {[%emt 00:00:04]} 30. Qd2 {[%clk 00:00:12]} {[%emt 00:00:07]} Rxd7
{[%clk 00:00:33]} {[%emt 00:00:04]} 31. Qxd7 {[%clk 00:00:12]} {[%emt
00:00:02]} Rf8 {[%clk 00:00:32]} {[%emt 00:00:03]} 32. h4 {[%clk 00:00:08]}
{[%emt 00:00:06]} Qa6 {[%clk 00:00:31]} {[%emt 00:00:03]} 33. Qd2 {[%clk
00:00:08]} {[%emt 00:00:02]} Qc8 {[%clk 00:00:29]} {[%emt 00:00:04]} 34. Qa5
{[%clk 00:00:07]} {[%emt 00:00:03]} a6 {[%clk 00:00:30]} {[%emt 00:00:01]} 35.
Qc5 {[%clk 00:00:08]} Bb7 {[%clk 00:00:30]} {[%emt 00:00:02]} 36. Rc1 {[%clk
00:00:09]} {[%emt 00:00:01]} Qd7 {[%clk 00:00:26]} {[%emt 00:00:06]} 37. Kh2
{[%clk 00:00:09]} {[%emt 00:00:01]} Rc8 {[%clk 00:00:27]} {[%emt 00:00:02]} 38.
Rc2 {[%clk 00:00:11]} {[%emt 00:00:01]} g6 {[%clk 00:00:24]} {[%emt 00:00:05]}
39. Rb2 {[%clk 00:00:12]} Ba8 {[%clk 00:00:25]} {[%emt 00:00:01]} 40. Qe3
{[%clk 00:00:12]} {[%emt 00:00:01]} Kg7 {[%clk 00:00:25]} {[%emt 00:00:02]} 41.
Qc5 {[%clk 00:00:13]} g5 {[%clk 00:00:20]} {[%emt 00:00:07]} 42. h5 {[%clk
00:00:11]} {[%emt 00:00:04]} Qc7 {[%clk 00:00:19]} {[%emt 00:00:03]} 43. a4
{[%clk 00:00:11]} {[%emt 00:00:02]} Rb8 {[%clk 00:00:19]} {[%emt 00:00:01]} 44.
Rd2 {[%clk 00:00:12]} {[%emt 00:00:02]} Rd8 {[%clk 00:00:19]} {[%emt 00:00:02]}
45. Rc2 {[%clk 00:00:12]} {[%emt 00:00:01]} Bb7 {[%clk 00:00:20]} {[%emt
00:00:02]} 46. a5 {[%clk 00:00:13]} Ba8 {[%clk 00:00:20]} {[%emt 00:00:01]} 47.
Rb2 {[%clk 00:00:14]} Bb7 {[%clk 00:00:21]} {[%emt 00:00:01]} 48. Qe3 {[%clk
00:00:11]} {[%emt 00:00:04]} Ba8 {[%clk 00:00:19]} {[%emt 00:00:04]} 49. Rb6
{[%clk 00:00:12]} {[%emt 00:00:02]} c5 {[%clk 00:00:20]} {[%emt 00:00:01]} 50.
Bxa8 {[%clk 00:00:08]} {[%emt 00:00:07]} Rxa8 {[%clk 00:00:21]} {[%emt
00:00:01]} 51. Qf3 {[%clk 00:00:09]} Ra7 {[%clk 00:00:20]} {[%emt 00:00:03]} 52.
Qf6+ {[%clk 00:00:09]} {[%emt 00:00:02]} Kg8 {[%clk 00:00:20]} {[%emt
00:00:02]} 53. Rd6 {[%clk 00:00:09]} {[%emt 00:00:02]} Ra8 {[%clk 00:00:18]}
{[%emt 00:00:04]} 54. Qxh6 {[%clk 00:00:10]} {[%emt 00:00:02]} Qe7 {[%clk
00:00:17]} {[%emt 00:00:02]} 55. Rc6 {[%clk 00:00:06]} {[%emt 00:00:06]} Rb8
{[%clk 00:00:15]} {[%emt 00:00:05]} 56. Qf6 {[%clk 00:00:06]} Qxf6 {[%clk
00:00:13]} {[%emt 00:00:04]} 57. exf6 {[%clk 00:00:07]} Rb5 {[%clk 00:00:14]}
{[%emt 00:00:02]} 58. Rxa6 {[%clk 00:00:07]} {[%emt 00:00:01]} c4 {[%clk
00:00:12]} {[%emt 00:00:04]} 59. Ra8+ {[%clk 00:00:06]} {[%emt 00:00:03]} Kh7
{[%clk 00:00:13]} {[%emt 00:00:01]} 60. Ra7 {[%clk 00:00:07]} {[%emt 00:00:02]}
Kh6 {[%clk 00:00:13]} {[%emt 00:00:01]} 61. Rxf7 {[%clk 00:00:07]} {[%emt
00:00:02]} Rxa5 {[%clk 00:00:13]} {[%emt 00:00:02]} 62. Rf8 {[%clk 00:00:04]}
{[%emt 00:00:05]} Kxh5 {[%clk 00:00:11]} {[%emt 00:00:04]} 63. Rg8 {[%clk
00:00:03]} {[%emt 00:00:03]} Ra7 {[%clk 00:00:10]} {[%emt 00:00:02]} 64. Rc8
{[%clk 00:00:04]} {[%emt 00:00:01]} Kg6 {[%clk 00:00:10]} {[%emt 00:00:02]} 65.
Rxc4 {[%clk 00:00:05]} {[%emt 00:00:01]} Kxf6 {[%clk 00:00:11]} 66. Kg2 {[%clk
00:00:06]} {[%emt 00:00:01]} Rd7 {[%clk 00:00:12]} 67. Re4 {[%clk 00:00:07]}
{[%emt 00:00:02]} Rd5 {[%clk 00:00:14]} 68. Re3 {[%clk 00:00:08]} Rf5 {[%clk
00:00:15]} 69. Kg1 {[%clk 00:00:09]} {[%emt 00:00:02]} Rd5 {[%clk 00:00:16]}
{[%emt 00:00:01]} 70. Rf3+ {[%clk 00:00:10]} Rf5 {[%clk 00:00:15]} {[%emt
00:00:03]} 71. Ra3 {[%clk 00:00:11]} Rd5 {[%clk 00:00:16]} {[%emt 00:00:01]} 72.
Kg2 {[%clk 00:00:12]} Rf5 {[%clk 00:00:17]} 73. g4 {[%clk 00:00:13]} Rd5 {[%clk
00:00:18]} 74. Kg3 {[%clk 00:00:14]} {[%emt 00:00:03]} Kg6 {[%clk 00:00:20]} 75.
Rf3 {[%clk 00:00:15]} Rc5 {[%clk 00:00:18]} {[%emt 00:00:03]} 76. Rf8 {[%clk
00:00:16]} {[%emt 00:00:02]} Kg7 {[%clk 00:00:19]} {[%emt 00:00:01]} 77. Ra8
{[%clk 00:00:15]} {[%emt 00:00:02]} Kf6 {[%clk 00:00:20]} {[%emt 00:00:01]} 78.
Ra7 {[%clk 00:00:16]} {[%emt 00:00:01]} Rd5 {[%clk 00:00:21]} {[%emt 00:00:02]}
79. Kf3 {[%clk 00:00:17]} {[%emt 00:00:01]} Rc5 {[%clk 00:00:22]} 80. Ra4
{[%clk 00:00:17]} {[%emt 00:00:03]} Re5 {[%clk 00:00:23]} 81. Rd4 {[%clk
00:00:18]} {[%emt 00:00:02]} Rc5 {[%clk 00:00:24]} 82. Ke4 {[%clk 00:00:12]}
{[%emt 00:00:08]} Re5+ {[%clk 00:00:24]} {[%emt 00:00:02]} 83. Kd3 {[%clk
00:00:13]} Ra5 {[%clk 00:00:26]} 84. Rd8 {[%clk 00:00:11]} {[%emt 00:00:03]}
Ke5 {[%clk 00:00:24]} {[%emt 00:00:05]} 85. Rf8 {[%emt 00:00:06]} Ra3+ {[%clk
00:00:23]} {[%emt 00:00:02]} 86. Ke2 {[%clk 00:00:09]} Ra4 {[%clk 00:00:24]}
{[%emt 00:00:01]} 87. Kf3 {[%clk 00:00:09]} {[%emt 00:00:02]} Ra3+ {[%clk
00:00:23]} {[%emt 00:00:03]} 88. Kg2 {[%clk 00:00:10]} Ra4 {[%clk 00:00:24]}
{[%emt 00:00:02]} 89. Kg3 {[%clk 00:00:09]} {[%emt 00:00:02]} Ra3+ {[%clk
00:00:25]} 90. f3 {[%clk 00:00:10]} {[%emt 00:00:01]} Ra4 {[%clk 00:00:18]}
{[%emt 00:00:01]} 91. Rf7 {[%clk 00:00:10]} {[%emt 00:00:09]} Rd4 {[%clk
00:00:15]} {[%emt 00:00:06]} 92. Rf8 {[%clk 00:00:07]} {[%emt 00:00:05]} Rb4
{[%clk 00:00:16]} {[%emt 00:00:01]} 1/2-1/2